bitfinex/quotes_BTCUSD_20240701
["timestamp","ask_amount","ask_price","bid_price","bid_amount"]
[1719807221973,0.285547,63473.0,63472.0,0.166124]
[1719807222174,0.114,63473.0,63472.0,0.166124]
[1719807222317,0.014,63473.0,63472.0,0.146124]
[1719807222515,0.119,63473.0,63472.0,0.146124]
[1719807222739,0.271547,63473.0,63472.0,0.146124]
[1719807222934,0.257547,63473.0,63472.0,0.146124]
[1719807223140,0.259547,63473.0,63472.0,0.146124]
[1719807223368,0.273547,63473.0,63472.0,0.146124]
[1719807223770,0.259547,63473.0,63472.0,0.166124]
[1719807224204,0.263547,63473.0,63472.0,0.146124]
[1719807224818,0.261547,63473.0,63472.0,0.146124]
[1719807225234,0.263547,63473.0,63472.0,0.146124]
[1719807225475,0.578641,63473.0,63472.0,0.146124]
[1719807225702,0.967135,63473.0,63472.0,0.146124]
[1719807226010,0.99404413,63473.0,63472.0,0.146124]
[1719807226501,0.98804413,63473.0,63472.0,0.146124]
[1719807226688,0.99204413,63473.0,63472.0,0.146124]
[1719807227151,0.99404413,63473.0,63472.0,0.146124]
[1719807227377,0.99004413,63473.0,63472.0,0.146124]
[1719807227607,0.99404413,63473.0,63472.0,0.146124]
[1719807228289,0.967135,63473.0,63472.0,0.146124]
[1719807229176,0.578641,63473.0,63472.0,0.146124]
[1719807229646,0.578641,63473.0,63472.0,0.166124]
[1719807230228,0.574641,63473.0,63472.0,0.166124]
[1719807230472,0.576641,63473.0,63472.0,0.166124]
[1719807230671,0.577641,63473.0,63472.0,0.166124]
[1719807230874,0.573641,63473.0,63472.0,0.166124]
[1719807231245,0.575641,63473.0,63472.0,0.166124]
[1719807235232,0.575641,63473.0,63472.0,0.146124]
[1719807235615,0.575641,63473.0,63472.0,0.166124]
[1719807238310,0.103,63473.0,63472.0,0.166124]
[1719807238554,0.103,63473.0,63472.0,0.33359544]
[1719807238555,0.003,63473.0,63472.0,0.33359544]
[1719807238955,0.003,63473.0,63472.0,0.17604644]
[1719807239108,0.001,63473.0,63472.0,0.17604644]
[1719807239534,0.002,63473.0,63472.0,0.17604644]
[1719807239936,0.1,63477.0,63472.0,0.03084644]
[1719807240142,0.1,63477.0,63473.0,0.1445]
[1719807240344,0.257537,63477.0,63476.0,0.1645]
[1719807241034,0.257537,63477.0,63476.0,0.1445]
[1719807241336,0.888685,63477.0,63476.0,0.1445]
[1719807241669,0.887685,63477.0,63476.0,0.1445]
[1719807242121,0.888685,63477.0,63476.0,0.1445]
[1719807242451,0.964085,63477.0,63476.0,0.1445]
[1719807242822,0.962085,63477.0,63476.0,0.1445]
[1719807243240,0.968085,63477.0,63476.0,0.1445]
[1719807243440,0.99499359,63477.0,63476.0,0.1445]
[1719807243638,0.98899359,63477.0,63476.0,0.1445]
[1719807244020,0.787735,63473.0,63472.0,0.000924]
[1719807244228,1.176229,63473.0,63472.0,0.000924]
[1719807244430,1.30313759,63473.0,63472.0,0.000924]
[1719807245331,1.31313759,63473.0,63472.0,0.000924]
[1719807245809,1.30313759,63473.0,63472.0,0.000924]
[1719807246189,1.31313759,63473.0,63472.0,0.000924]
[1719807246548,1.32413759,63473.0,63472.0,0.000924]
[1719807254209,1.91934057,63473.0,63472.0,0.000924]
[1719807254593,2.03708971,63473.0,63472.0,0.000924]
[1719807255150,1.91934057,63473.0,63472.0,0.000924]
[1719807255351,2.03713728,63473.0,63472.0,0.000924]
[1719807255765,2.11934057,63473.0,63472.0,0.000924]
[1719807256348,2.59676828,63473.0,63472.0,0.000924]
[1719807256476,2.79839129,63473.0,63472.0,0.000924]
[1719807256676,2.63605758,63473.0,63472.0,0.000924]
[1719807257507,2.83605758,63473.0,63472.0,0.000924]
[1719807258292,2.83608825,63473.0,63472.0,0.000924]
[1719807258493,2.82608825,63473.0,63472.0,0.000924]
[1719807258937,2.84008825,63473.0,63472.0,0.000924]
[1719807259344,2.82908825,63473.0,63472.0,0.000924]
[1719807259654,2.64308825,63473.0,63472.0,0.000924]
[1719807260036,2.63151213,63473.0,63472.0,0.000924]
[1719807260235,2.75880666,63473.0,63472.0,0.000924]
[1719807260405,2.77280666,63473.0,63472.0,0.000924]
[1719807261175,2.63151213,63473.0,63472.0,0.000924]
[1719807261707,2.77279875,63473.0,63472.0,0.000924]
[1719807261839,2.97279875,63473.0,63472.0,0.000924]
[1719807263220,2.77279875,63473.0,63472.0,0.000924]
[1719807263958,4.76083675,63473.0,63472.0,0.000924]
[1719807264172,4.41624475,63473.0,63472.0,0.000924]
[1719807264586,4.41619945,63473.0,63472.0,0.000924]
[1719807264841,4.61619945,63473.0,63472.0,0.000924]
[1719807267417,4.60219945,63473.0,63472.0,0.000924]
[1719807267771,4.47495813,63473.0,63472.0,0.000924]
[1719807267975,4.60213704,63473.0,63472.0,0.000924]
[1719807268369,4.6161214,63473.0,63472.0,0.000924]
[1719807268777,6.0179814,63473.0,63472.0,0.000924]
[1719807268956,5.99953763,63473.0,63472.0,0.000924]
[1719807269154,5.98553763,63473.0,63472.0,0.000924]
[1719807269651,5.81276463,63473.0,63472.0,0.000924]
[1719807269812,5.82676463,63473.0,63472.0,0.000924]
[1719807270209,5.97441734,63473.0,63472.0,0.000924]
[1719807270414,5.97441951,63473.0,63472.0,0.000924]
[1719807270950,5.83325623,63473.0,63472.0,0.000924]
[1719807271149,6.11552241,63473.0,63472.0,0.000924]
[1719807271332,5.97438932,63473.0,63472.0,0.000924]
[1719807273443,5.35151632,63473.0,63472.0,0.000924]
[1719807273850,4.11399932,63473.0,63472.0,0.000924]
[1719807274199,3.99200232,63473.0,63472.0,0.000924]
[1719807274344,3.99200272,63473.0,63472.0,0.000924]
[1719807275199,3.79200272,63473.0,63472.0,0.000924]
[1719807275400,3.99200272,63473.0,63472.0,0.000924]
[1719807276059,3.62966901,63473.0,63472.0,0.000924]
[1719807276271,3.11753101,63473.0,63472.0,0.000924]
[1719807276465,3.19093101,63473.0,63472.0,0.077624]
[1719807277539,3.10594522,63473.0,63472.0,0.077624]
[1719807277740,3.19093265,63473.0,63472.0,0.077624]
[1719807277941,3.19177265,63473.0,63472.0,0.077624]
[1719807278945,3.30536745,63473.0,63472.0,0.077624]
[1719807279444,3.23196745,63473.0,63472.0,0.077624]
[1719807279692,3.30536745,63473.0,63472.0,0.077624]
[1719807280871,3.30536587,63473.0,63472.0,0.077624]
[1719807283241,2.60327707,63473.0,63472.0,0.000924]
[1719807283445,2.32284398,63473.0,63472.0,0.082824]
[1719807283652,2.34465813,63473.0,63472.0,0.082824]
[1719807283863,2.35624711,63473.0,63472.0,0.082824]
[1719807287079,2.35622105,63473.0,63472.0,0.082824]
[1719807289322,2.35621011,63473.0,63472.0,0.082824]
[1719807290447,2.35621137,63473.0,63472.0,0.082824]
[1719807291399,2.49762778,63473.0,63472.0,0.082824]
[1719807292259,2.35621137,63473.0,63472.0,0.082824]
[1719807293468,2.34465813,63473.0,63472.0,0.082824]
[1719807293708,2.35622872,63473.0,63472.0,0.082824]
[1719807294114,2.35622282,63473.0,63472.0,0.082824]
[1719807296740,2.34465813,63473.0,63472.0,0.082824]
[1719807296936,2.35622038,63473.0,63472.0,0.082824]
[1719807298431,2.34465813,63473.0,63472.0,0.082824]
[1719807300368,1.44391657,63473.0,63472.0,0.143024]
[1719807300600,0.52838959,63473.0,63472.0,0.163024]
[1719807301074,0.30779178,63473.0,63472.0,0.163024]
[1719807301332,0.21329559,63473.0,63472.0,0.163024]
[1719807301741,0.52838959,63473.0,63472.0,0.163024]
[1719807301896,0.19929559,63473.0,63472.0,0.163024]
[1719807302291,0.19829559,63473.0,63472.0,0.163024]
[1719807302496,0.29911269,63473.0,63472.0,0.163024]
[1719807303132,0.28511269,63473.0,63472.0,0.163024]
[1719807303504,0.28711269,63473.0,63472.0,0.163024]
[1719807303963,0.28511269,63473.0,63472.0,0.163024]
[1719807305659,0.10084,63473.0,63472.0,0.163024]
[1719807305822,0.10084,63473.0,63472.0,0.37294644]
[1719807306046,0.00084,63477.0,63476.0,0.1684]
[1719807306451,0.158377,63477.0,63476.0,0.1684]
[1719807306873,0.158377,63477.0,63476.0,0.1484]
[1719807307098,0.473451,63477.0,63476.0,0.1484]
[1719807308030,0.573451,63477.0,63476.0,0.1484]
[1719807308584,0.574451,63477.0,63476.0,0.1484]
[1719807309237,0.573451,63477.0,63476.0,0.1484]
[1719807309774,0.575451,63477.0,63476.0,0.1684]
[1719807309975,0.579451,63477.0,63476.0,0.1484]
[1719807310591,0.575451,63477.0,63476.0,0.1484]
[1719807311044,0.579451,63477.0,63476.0,0.1484]
[1719807311877,0.894525,63477.0,63476.0,0.1484]
[1719807312080,1.209599,63477.0,63476.0,0.1484]
[1719807312254,1.232599,63477.0,63476.0,0.1484]
[1719807312931,1.228599,63477.0,63476.0,0.1484]
[1719807313130,1.235599,63477.0,63476.0,0.1484]
[1719807313912,1.25351699,63477.0,63476.0,0.1484]
[1719807314126,1.26251699,63477.0,63476.0,0.1484]
[1719807314536,1.27051699,63477.0,63476.0,0.1484]
[1719807314786,1.26251699,63477.0,63476.0,0.1484]
[1719807314984,1.27051699,63477.0,63476.0,0.1484]
[1719807321903,1.102829,63473.0,63472.0,0.000924]
[1719807322111,1.29208597,63473.0,63472.0,0.000924]
[1719807322266,1.41508597,63473.0,63472.0,0.000924]
[1719807323091,1.83894997,63473.0,63472.0,0.000924]
[1719807323334,1.93544997,63473.0,63472.0,0.000924]
[1719807323712,1.93244997,63473.0,63472.0,0.000924]
[1719807324126,1.94644997,63473.0,63472.0,0.000924]
[1719807324885,1.93244997,63473.0,63472.0,0.000924]
[1719807325055,1.94644997,63473.0,63472.0,0.000924]
[1719807325786,2.04067027,63473.0,63472.0,0.000924]
[1719807326445,1.94644997,63473.0,63472.0,0.000924]
[1719807326616,2.04068435,63473.0,63472.0,0.000924]
[1719807327035,1.94644997,63473.0,63472.0,0.000924]
[1719807328416,1.92894997,63473.0,63472.0,0.000924]
[1719807328628,1.53785597,63473.0,63472.0,0.000924]
[1719807328831,1.61125597,63473.0,63472.0,0.000924]
[1719807329140,1.51648597,63473.0,63472.0,0.000924]
[1719807330445,1.51648597,63473.0,63472.0,0.143424]
[1719807332619,1.46203547,63473.0,63472.0,0.143424]
[1719807332830,1.53543547,63473.0,63472.0,0.143424]
[1719807333887,1.37309649,63473.0,63472.0,0.163424]
[1719807334089,0.62755899,63473.0,63472.0,0.163424]
[1719807335115,0.61355899,63473.0,63472.0,0.163424]
[1719807335321,0.59955899,63473.0,63472.0,0.163424]
[1719807335517,0.62255899,63473.0,63472.0,0.163424]
[1719807335922,0.59955899,63473.0,63472.0,0.163424]
[1719807336127,0.92365299,63473.0,63472.0,0.143424]
[1719807336325,0.93365299,63473.0,63472.0,0.143424]
[1719807339875,0.93365299,63473.0,63472.0,0.143424]
[1719807340487,1.43408597,63473.0,63472.0,0.000924]
[1719807341117,1.43492597,63473.0,63472.0,0.000924]
[1719807341334,1.42492597,63473.0,63472.0,0.000924]
[1719807341530,1.43892597,63473.0,63472.0,0.000924]
[1719807341913,1.42992597,63473.0,63472.0,0.000924]
[1719807342089,1.41592597,63473.0,63472.0,0.000924]
[1719807342294,1.44392597,63473.0,63472.0,0.000924]
[1719807342471,1.42992597,63473.0,63472.0,0.000924]
[1719807342873,1.42892597,63473.0,63472.0,0.000924]
[1719807343098,1.42792597,63473.0,63472.0,0.000924]
[1719807343680,1.43992597,63473.0,63472.0,0.000924]
[1719807343855,1.53427591,63473.0,63472.0,0.000924]
[1719807344058,1.43992597,63473.0,63472.0,0.000924]
[1719807344469,1.53428999,63473.0,63472.0,0.000924]
[1719807345407,1.43992597,63473.0,63472.0,0.000924]
[1719807346053,1.53429805,63473.0,63472.0,0.000924]
[1719807346261,1.43992597,63473.0,63472.0,0.000924]
[1719807346461,1.53429802,63473.0,63472.0,0.000924]
[1719807346667,1.43992597,63473.0,63472.0,0.000924]
[1719807350205,1.50132597,63473.0,63472.0,0.066624]
[1719807351265,1.48932597,63473.0,63472.0,0.066624]
[1719807351531,1.50332597,63473.0,63472.0,0.066624]
[1719807351969,1.51732597,63473.0,63472.0,0.066624]
[1719807352191,1.50332597,63473.0,63472.0,0.066624]
[1719807352594,1.51732597,63473.0,63472.0,0.066624]
[1719807352800,1.50332597,63473.0,63472.0,0.066624]
[1719807353103,1.51732597,63473.0,63472.0,0.066624]
[1719807354392,1.49040798,63473.0,63472.0,0.066624]
[1719807355847,1.51736708,63473.0,63472.0,0.066624]
[1719807361610,1.99643108,63473.0,63472.0,0.000924]
[1719807362034,2.21043108,63473.0,63472.0,0.000924]
[1719807362397,2.19643108,63473.0,63472.0,0.000924]
[1719807362742,1.90903108,63473.0,63472.0,0.000924]
[1719807362881,1.98243108,63473.0,63472.0,0.000924]
[1719807363087,1.99643108,63473.0,63472.0,0.000924]
[1719807363388,1.98243108,63473.0,63472.0,0.000924]
[1719807363590,1.99643108,63473.0,63472.0,0.000924]
[1719807363799,2.01043108,63473.0,63472.0,0.000924]
[1719807364510,2.21043108,63473.0,63472.0,0.000924]
[1719807364715,2.19643108,63473.0,63472.0,0.000924]
[1719807365113,2.21043108,63473.0,63472.0,0.000924]
[1719807365502,4.02185008,63473.0,63472.0,0.000924]
[1719807365686,4.01135008,63473.0,63472.0,0.000924]
[1719807366097,4.02535008,63473.0,63472.0,0.000924]
[1719807366513,2.84910408,63473.0,63472.0,0.000924]
[1719807366731,2.57094208,63473.0,63472.0,0.000924]
[1719807367497,1.83083108,63473.0,63472.0,0.000924]
[1719807367706,1.81683108,63473.0,63472.0,0.146024]
[1719807367910,1.90423108,63473.0,63472.0,0.146024]
[1719807368915,1.2676281,63473.0,63472.0,0.146024]
[1719807369291,1.3410281,63473.0,63472.0,0.146024]
[1719807370935,1.3550281,63473.0,63472.0,0.146024]
[1719807371165,1.3410281,63473.0,63472.0,0.146024]
[1719807371445,1.3270281,63473.0,63472.0,0.146024]
[1719807372192,1.3410281,63473.0,63472.0,0.146024]
[1719807372592,1.3550281,63473.0,63472.0,0.146024]
[1719807373295,0.9435341,63473.0,63472.0,0.146024]
[1719807373522,0.9435341,63473.0,63472.0,0.166024]
[1719807373523,0.6284401,63473.0,63472.0,0.166024]
[1719807374940,0.6144401,63473.0,63472.0,0.166024]
[1719807375149,0.6144401,63473.0,63472.0,0.146024]
[1719807375150,0.6244401,63473.0,63472.0,0.146024]
[1719807375338,0.6244401,63473.0,63472.0,0.166024]
[1719807375945,0.6104401,63473.0,63472.0,0.166024]
[1719807376309,0.6194401,63473.0,63472.0,0.166024]
[1719807380403,0.3043461,63473.0,63472.0,0.166024]
[1719807381024,0.1467991,63473.0,63472.0,0.166024]
[1719807381302,0.0467991,63473.0,63472.0,0.166024]
[1719807381681,0.2043461,63473.0,63472.0,0.166024]
[1719807381914,0.3043461,63473.0,63472.0,0.166024]
[1719807383477,0.1467991,63473.0,63472.0,0.166024]
[1719807384515,0.3043461,63473.0,63472.0,0.166024]
[1719807390913,0.3043461,63473.0,63472.0,0.146024]
[1719807391136,0.3043461,63473.0,63472.0,0.166024]
[1719807391348,0.6194401,63473.0,63472.0,0.146024]
[1719807391739,0.6194401,63473.0,63472.0,0.166024]
[1719807392143,0.6194401,63473.0,63472.0,0.146024]
[1719807392322,0.9345341,63473.0,63472.0,0.146024]
[1719807392523,0.9345341,63473.0,63472.0,0.063824]
[1719807399238,1.2496281,63473.0,63472.0,0.000924]
[1719807399414,1.2726281,63473.0,63472.0,0.000924]
[1719807403101,1.3460281,63473.0,63472.0,0.081324]
[1719807405299,1.3460281,63473.0,63472.0,0.061324]
[1719807409666,1.0309341,63473.0,63472.0,0.157124]
[1719807410601,0.9575341,63473.0,63472.0,0.157124]
[1719807411362,1.0309341,63473.0,63472.0,0.157124]
[1719807411770,1.0309341,63473.0,63472.0,0.137124]
[1719807413976,1.0309341,63473.0,63472.0,0.157124]
[1719807414940,1.0309341,63473.0,63472.0,0.137124]
[1719807417142,1.12540866,63473.0,63472.0,0.137124]
[1719807417342,1.12540866,63473.0,63472.0,0.000924]
[1719807418410,1.0309341,63473.0,63472.0,0.000924]
[1719807422093,1.03088287,63473.0,63472.0,0.000924]
[1719807423226,1.68258585,63473.0,63472.0,0.000924]
[1719807423775,1.60308585,63473.0,63472.0,0.000924]
[1719807423974,1.52968585,63473.0,63472.0,0.000924]
[1719807424174,1.60308585,63473.0,63472.0,0.000924]
[1719807428102,1.43491585,63473.0,63472.0,0.000924]
[1719807428327,1.50831585,63473.0,63472.0,0.000924]
[1719807429096,1.62647732,63473.0,63472.0,0.000924]
[1719807429304,1.46413855,63473.0,63472.0,0.000924]
[1719807431230,1.34597687,63473.0,63472.0,0.000924]
[1719807438089,1.34597687,63473.0,63472.0,0.085624]
[1719807439010,1.34597687,63473.0,63472.0,0.065624]
[1719807447794,0.95748287,63473.0,63472.0,0.085624]
[1719807447999,0.14674787,63473.0,63472.0,0.162324]
[1719807448205,0.14129721,63473.0,63472.0,0.162324]
[1719807448428,0.14674787,63473.0,63472.0,0.162324]
[1719807450605,0.04674787,63473.0,63472.0,0.162324]
[1719807455621,0.51938887,63473.0,63472.0,0.142324]
[1719807455868,0.69278887,63473.0,63472.0,0.065624]
[1719807456108,0.78733174,63473.0,63472.0,0.065624]
[1719807456346,1.00788287,63473.0,63472.0,0.065624]
[1719807456581,1.10242574,63473.0,63472.0,0.065624]
[1719807456830,1.00788287,63473.0,63472.0,0.065624]
[1719807457476,1.00788287,63473.0,63472.0,0.000924]
[1719807457885,1.10241273,63473.0,63472.0,0.000924]
[1719807458131,1.18071273,63473.0,63472.0,0.000924]
[1719807458332,1.08618287,63473.0,63472.0,0.000924]
[1719807459010,1.40127687,63473.0,63472.0,0.000924]
[1719807463124,1.32297687,63473.0,63472.0,0.000924]
[1719807464833,1.24957687,63473.0,63472.0,0.000924]
[1719807465040,1.32297687,63473.0,63472.0,0.000924]
[1719807467171,1.24957687,63473.0,63472.0,0.000924]
[1719807467382,1.32297687,63473.0,63472.0,0.000924]
[1719807467601,1.24957687,63473.0,63472.0,0.066624]
[1719807467799,1.24957687,63473.0,63472.0,0.086624]
[1719807468280,1.24957687,63473.0,63472.0,0.162224]
[1719807469038,0.93448287,63473.0,63472.0,0.162224]
[1719807469301,0.14674787,63473.0,63472.0,0.162224]
[1719807469488,0.14674787,63473.0,63472.0,0.17214644]
[1719807469662,0.14674787,63473.0,63472.0,0.18214644]
[1719807469663,0.04674787,63473.0,63472.0,0.18214644]
[1719807469998,0.14674787,63473.0,63472.0,0.18214644]
[1719807470195,0.13674787,63473.0,63472.0,0.18214644]
[1719807470578,0.14674787,63473.0,63472.0,0.17214644]
[1719807471032,0.13674787,63473.0,63472.0,0.17214644]
[1719807471438,0.12774787,63473.0,63472.0,0.17214644]
[1719807471637,0.13774787,63473.0,63472.0,0.17314644]
[1719807471998,0.12874787,63473.0,63472.0,0.17314644]
[1719807472205,0.02974787,63473.0,63472.0,0.17314644]
[1719807472853,0.02874787,63473.0,63472.0,0.17314644]
[1719807473577,0.02974787,63473.0,63472.0,0.17614644]
[1719807473765,0.18729487,63473.0,63472.0,0.17614644]
[1719807473906,0.28729487,63473.0,63472.0,0.17614644]
[1719807474114,0.28629487,63473.0,63472.0,0.17314644]
[1719807474317,0.28629487,63473.0,63472.0,0.17514644]
[1719807474941,0.28629487,63473.0,63472.0,0.17314644]
[1719807475324,0.28529487,63473.0,63472.0,0.17214644]
[1719807476895,0.28629487,63473.0,63472.0,0.17214644]
[1719807477531,0.28529487,63473.0,63472.0,0.17214644]
[1719807477771,0.60238887,63473.0,63472.0,0.03084644]
[1719807477969,0.60238887,63473.0,63472.0,0.10654644]
[1719807478409,0.60238887,63473.0,63472.0,0.17204644]
[1719807478410,0.60038887,63473.0,63472.0,0.17204644]
[1719807478732,0.60138887,63473.0,63472.0,0.17204644]
[1719807487057,0.60138887,63473.0,63472.0,0.15204644]
[1719807488646,0.91648287,63473.0,63472.0,0.15204644]
[1719807490030,0.91648287,63473.0,63472.0,0.17204644]
[1719807491775,0.91648287,63473.0,63472.0,0.01084644]
[1719807494068,0.91648287,63473.0,63472.0,0.03084644]
[1719807494273,0.91648287,63473.0,63472.0,0.01084644]
[1719807497272,0.91648287,63473.0,63472.0,0.03084644]
[1719807500019,0.91648287,63473.0,63472.0,0.01084644]
[1719807503531,0.91648287,63473.0,63472.0,0.03084644]
[1719807504098,0.91648287,63473.0,63472.0,0.11254644]
[1719807506714,0.91648287,63473.0,63472.0,0.17764644]
[1719807507555,0.91648287,63473.0,63472.0,0.17824644]
[1719807507556,0.12874787,63473.0,63472.0,0.17824644]
[1719807507769,0.02874787,63473.0,63472.0,0.17824644]
[1719807510330,0.02774787,63473.0,63472.0,0.17824644]
[1719807510541,0.02874787,63473.0,63472.0,0.17824644]
[1719807511137,0.02774787,63473.0,63472.0,0.17824644]
[1719807511564,0.02774787,63473.0,63472.0,0.18024644]
[1719807514107,0.02774787,63473.0,63472.0,0.17824644]
[1719807514486,0.02774787,63473.0,63472.0,0.18024644]
[1719807515472,0.02774787,63473.0,63472.0,0.03284644]
[1719807515854,0.18529487,63473.0,63472.0,0.03284644]
[1719807516068,0.28529487,63473.0,63472.0,0.03284644]
[1719807516464,0.60038887,63473.0,63472.0,0.01284644]
[1719807516887,0.60038887,63473.0,63472.0,0.03284644]
[1719807517313,0.60038887,63473.0,63472.0,0.01284644]
[1719807517515,0.60038887,63473.0,63472.0,0.03284644]
[1719807518162,0.60038887,63473.0,63472.0,0.03084644]
[1719807518375,0.91548287,63473.0,63472.0,0.01084644]
[1719807518914,0.91648287,63473.0,63472.0,0.01084644]
[1719807519507,0.98988287,63473.0,63472.0,0.01084644]
[1719807519713,1.07258287,63473.0,63472.0,0.01084644]
[1719807520546,0.91648287,63473.0,63472.0,0.03084644]
[1719807521087,0.91848287,63473.0,63472.0,0.03084644]
[1719807521729,0.91648287,63473.0,63472.0,0.03084644]
[1719807521931,0.91848287,63473.0,63472.0,0.03084644]
[1719807522776,0.60338887,63473.0,63472.0,0.03084644]
[1719807527222,0.60238887,63473.0,63472.0,0.03084644]
[1719807527423,0.12774787,63473.0,63472.0,0.03084644]
[1719807527828,0.02974787,63473.0,63472.0,0.03084644]
[1719807528187,0.02774787,63473.0,63472.0,0.03084644]
[1719807531019,0.02874787,63473.0,63472.0,0.03084644]
[1719807532145,0.02774787,63473.0,63472.0,0.03084644]
[1719807532590,0.02874787,63473.0,63472.0,0.03084644]
[1719807533810,0.02774787,63473.0,63472.0,0.03084644]
[1719807534253,0.02874787,63473.0,63472.0,0.03084644]
[1719807536530,0.02874787,63473.0,63472.0,0.50349644]
[1719807537718,0.02874787,63473.0,63472.0,0.58159644]
[1719807538523,0.02774787,63473.0,63472.0,0.58159644]
[1719807538728,0.18529487,63473.0,63472.0,0.58159644]
[1719807538931,0.28529487,63473.0,63472.0,0.50349644]
[1719807539133,0.28529487,63473.0,63472.0,0.48349644]
[1719807539335,0.28529487,63473.0,63472.0,0.50349644]
[1719807542731,0.60038887,63473.0,63472.0,0.50349644]
[1719807546052,0.28629487,63473.0,63472.0,0.64789644]
[1719807546482,0.28529487,63473.0,63472.0,0.64789644]
[1719807547459,0.28729487,63473.0,63472.0,0.64789644]
[1719807548519,0.28829487,63473.0,63472.0,0.64789644]
[1719807548719,0.28729487,63473.0,63472.0,0.64789644]
[1719807549082,0.28829487,63473.0,63472.0,0.64789644]
[1719807552286,0.91648287,63473.0,63472.0,0.473574]
[1719807552546,1.6815811,63473.0,63472.0,0.473574]
[1719807552746,1.51361585,63473.0,63472.0,0.473574]
[1719807553153,1.70521079,63473.0,63472.0,0.473574]
[1719807553377,1.58701585,63473.0,63472.0,0.473574]
[1719807553574,1.58801585,63473.0,63472.0,0.473574]
[1719807554370,1.59001585,63473.0,63472.0,0.473574]
[1719807554594,1.70815836,63473.0,63472.0,0.473574]
[1719807555189,1.63575836,63473.0,63472.0,0.473574]
[1719807555385,1.70915919,63473.0,63472.0,0.473574]
[1719807555818,1.63574914,63473.0,63472.0,0.473574]
[1719807556023,1.70914914,63473.0,63472.0,0.473574]
[1719807556228,1.63574914,63473.0,63472.0,0.473574]
[1719807556487,1.70914914,63473.0,63472.0,0.473574]
[1719807557444,1.51761585,63473.0,63472.0,0.493574]
[1719807557647,1.51761585,63473.0,63472.0,0.473574]
[1719807557857,1.59101585,63473.0,63472.0,0.473574]
[1719807559228,1.6095635,63473.0,63472.0,0.473574]
[1719807559428,1.5920635,63473.0,63472.0,0.473574]
[1719807559652,1.5920635,63473.0,63472.0,0.493574]
[1719807560633,0.96103052,63473.0,63472.0,0.493574]
[1719807560835,0.15029552,63473.0,63472.0,0.632574]
[1719807561519,0.30784252,63473.0,63472.0,0.493574]
[1719807561921,0.30384252,63473.0,63472.0,0.493574]
[1719807562323,0.30584252,63473.0,63472.0,0.493574]
[1719807562631,0.30384252,63473.0,63472.0,0.493574]
[1719807562905,0.30484252,63473.0,63472.0,0.493574]
[1719807563261,0.61993652,63473.0,63472.0,0.493574]
[1719807563462,0.69333652,63473.0,63472.0,0.473574]
[1719807563670,0.69333652,63473.0,63472.0,0.493574]
[1719807564073,0.69433652,63473.0,63472.0,0.493574]
[1719807564276,0.69333652,63473.0,63472.0,0.493574]
[1719807567436,0.93503052,63473.0,63472.0,0.493574]
[1719807567643,0.95803052,63473.0,63472.0,0.493574]
[1719807573571,0.64293652,63473.0,63472.0,0.493574]
[1719807577388,0.95803052,63473.0,63472.0,0.473574]
[1719807577824,1.31254221,63473.0,63472.0,0.473574]
[1719807578177,1.2180695,63473.0,63472.0,0.473574]
[1719807579502,1.31254426,63473.0,63472.0,0.473574]
[1719807580723,1.2180695,63473.0,63472.0,0.473574]
[1719807581097,1.31254319,63473.0,63472.0,0.473574]
[1719807582117,1.62763719,63473.0,63472.0,0.473574]
[1719807582723,1.61013719,63473.0,63472.0,0.473574]
[1719807583616,1.61012576,63473.0,63472.0,0.473574]
[1719807584083,1.61012118,63473.0,63472.0,0.473574]
[1719807587037,1.61013702,63473.0,63472.0,0.473574]
[1719807588402,1.5156635,63473.0,63472.0,0.473574]
[1719807590430,1.5890635,63473.0,63472.0,0.473574]
[1719807592344,1.7013335,63473.0,63472.0,0.473574]
[1719807592798,2.0164275,63473.0,63472.0,0.473574]
[1719807593110,2.42741634,63473.0,63472.0,0.473574]
[1719807593314,2.42741659,63473.0,63472.0,0.473574]
[1719807594094,2.43641659,63473.0,63472.0,0.473574]
[1719807594425,2.42741659,63473.0,63472.0,0.473574]
[1719807594622,2.74151059,63473.0,63472.0,0.473574]
[1719807594846,3.16858068,63473.0,63472.0,0.473574]
[1719807595045,3.17058068,63473.0,63472.0,0.473574]
[1719807595881,3.16858068,63473.0,63472.0,0.473574]
[1719807596093,3.18258068,63473.0,63472.0,0.473574]
[1719807596468,3.18260175,63473.0,63472.0,0.473574]
[1719807597013,3.16860175,63473.0,63472.0,0.473574]
[1719807597629,3.15460175,63473.0,63472.0,0.473574]
[1719807597835,3.1575425,63473.0,63472.0,0.473574]
[1719807598029,3.1715425,63473.0,63472.0,0.473574]
[1719807601558,2.9715425,63473.0,63472.0,0.473574]
[1719807602131,3.31301497,63473.0,63472.0,0.473574]
[1719807605057,3.1129798,63473.0,63472.0,0.473574]
[1719807605256,2.9715425,63473.0,63472.0,0.473574]
[1719807607081,2.97069858,63473.0,63472.0,0.473574]
[1719807607284,2.24258358,63473.0,63472.0,0.473574]
[1719807607485,3.61572058,63473.0,63472.0,0.473574]
[1719807611188,3.54232058,63473.0,63472.0,0.473574]
[1719807611371,3.54413058,63473.0,63472.0,0.473574]
[1719807612090,3.74413058,63473.0,63472.0,0.473574]
[1719807614852,3.54413058,63473.0,63472.0,0.473574]
[1719807615481,3.25749758,63473.0,63472.0,0.473574]
[1719807615679,3.45749758,63473.0,63472.0,0.473574]
[1719807617536,3.46861405,63473.0,63472.0,0.473574]
[1719807617741,3.46861473,63473.0,63472.0,0.473574]
[1719807618150,3.45749758,63473.0,63472.0,0.473574]
[1719807618352,3.46861723,63473.0,63472.0,0.473574]
[1719807618569,0.2,63462.0,63461.0,0.000924]
[1719807618780,4.07612149,63462.0,63461.0,0.000924]
[1719807618980,4.07612149,63462.0,63455.0,0.0769]
[1719807618981,0.882717,63456.0,63455.0,0.0769]
[1719807619181,1.58353893,63456.0,63455.0,0.0769]
[1719807619326,1.67784623,63456.0,63455.0,0.0769]
[1719807619727,1.03215825,63456.0,63455.0,0.1378]
[1719807619928,0.93785095,63456.0,63455.0,0.1578]
[1719807620215,0.93785095,63456.0,63455.0,0.1378]
[1719807620846,0.95185095,63456.0,63455.0,0.1378]
[1719807621068,0.94885095,63456.0,63455.0,0.1378]
[1719807621481,0.94185095,63456.0,63455.0,0.1378]
[1719807622033,0.94685095,63456.0,63455.0,0.1378]
[1719807622839,0.63167195,63456.0,63455.0,0.1578]
[1719807623039,0.03590395,63456.0,63455.0,0.16772244]